bitfinex/quotes_SOLUSD_20240925
["timestamp","ask_amount","ask_price","bid_price","bid_amount"]
[1727288794887,6.6609,150.13,150.07,15.5493]
[1727288795271,6.6614,150.12,150.07,15.5493]
[1727288803096,23.776884,150.13,150.07,16.88191908]
[1727288803306,30.437784,150.13,150.07,16.88191908]
[1727288804769,30.437884,150.13,150.07,16.88191908]
[1727288806016,23.776884,150.13,150.07,15.5493]
[1727288806286,6.6613,150.12,150.07,15.5493]
[1727288806910,6.6618,150.11,150.07,15.5493]
[1727288807609,6.6622,150.1,150.05,6.3904]
[1727288807814,6.6622,150.1,150.03,16.6741639]
[1727288809125,6.6619,150.11,150.04,22.67305821]
[1727288809580,6.6619,150.11,150.04,21.34034755]
[1727288809836,23.776884,150.1,150.04,21.34034755]
[1727288810006,30.439184,150.1,150.04,21.34034755]
[1727288810716,0.1552856,150.14,150.06,21.34034755]
[1727288810927,0.1552856,150.14,150.08,21.34034755]
[1727288811293,0.1552856,150.14,150.05,22.007]
[1727288811294,6.8157856,150.14,150.06,21.34034755]
[1727288811900,6.8157856,150.14,150.07,1.3324814]
[1727288812096,6.8157856,150.14,150.08,21.34034755]
[1727288812322,6.8157856,150.14,150.1,13.66110135]
[1727288812921,0.1552856,150.14,150.12,13.66110135]
[1727288815118,0.1552856,150.14,150.1,13.66110135]
[1727288816002,6.8157856,150.14,150.05,22.007]
[1727288816415,6.8157856,150.14,150.09,13.66110135]
[1727288816898,0.1552856,150.14,150.13,13.66110135]
[1727288820543,0.1552856,150.14,150.11,16.116]
[1727288821135,0.1552856,150.14,150.12,22.67086534]
[1727288821606,0.1552856,150.14,150.12,21.33864843]
[1727288822228,0.1552856,150.14,150.13,1.33204243]
[1727288822920,0.1552856,150.14,150.12,21.33864843]
[1727288826414,0.2454495,150.19,150.12,21.33864843]
[1727288826736,0.2454495,150.19,150.16,21.33864843]
[1727288827236,0.2454495,150.19,150.14,21.33864843]
[1727288831955,6.9037495,150.19,150.12,21.33864843]
[1727288832129,24.0223335,150.19,150.12,21.33864843]
[1727288832322,44.0723335,150.19,150.11,22.291]
[1727288832762,6.6596,150.16,150.11,22.291]
[1727288832945,44.0723335,150.19,150.11,22.291]
[1727288832946,6.6592,150.17,150.11,22.291]
[1727288833132,6.6592,150.17,150.1,21.33864843]
[1727288834649,6.6592,150.17,150.11,1.33212984]
[1727288836074,6.6592,150.17,150.12,21.33864843]
[1727288841255,37.6397045,150.19,150.12,21.33864843]
[1727288841846,57.6897045,150.19,150.12,21.33864843]
[1727288842584,50.7306335,150.19,150.15,13.65264433]
[1727288843156,24.0223335,150.19,150.15,13.65264433]
[1727288843353,0.2454495,150.19,150.17,13.65264433]
[1727288846650,0.2454495,150.19,150.07,20.0]
[1727288846859,0.2454495,150.19,150.06,32.41138165]
[1727288846860,0.2454495,150.19,150.13,13.65264433]
[1727288847159,6.6588,150.18,150.14,13.65264433]
[1727288853067,0.2454495,150.19,150.14,13.65264433]
[1727288853263,6.9037495,150.19,150.16,13.65264433]
[1727288854263,6.9037495,150.19,150.14,13.65264433]
[1727288855665,6.6589,150.18,150.14,13.65264433]
[1727288855868,44.0723335,150.19,150.07,8.67699354]
[1727288856067,6.66,150.15,150.1,13.65264433]
[1727288857377,6.66,150.15,150.11,13.65264433]
[1727288860246,80.16,150.18,150.03,0.2454495]
[1727288860247,6.6605,150.14,150.09,13.65264433]
[1727288860459,23.776884,150.13,150.04,8.69171288]
[1727288860782,23.776884,150.13,150.07,13.65264433]
[1727288860783,20.05,150.13,150.07,13.65264433]
[1727288860962,43.776884,150.13,150.07,13.65264433]
[1727288861470,43.776884,150.13,150.09,13.65264433]
[1727288861876,50.437784,150.13,150.09,13.65264433]
[1727288867506,20.0,150.15,150.09,13.65264433]
[1727288867809,6.6601,150.15,150.11,13.65264433]
[1727288867983,40.05,150.17,150.11,13.65264433]
[1727288867984,6.96042036,150.16,150.11,13.65264433]
[1727288868191,35.01361185,150.19,150.13,13.65264433]
[1727288868192,6.6587,150.18,150.13,13.65264433]
[1727288870115,64.0723335,150.19,150.11,13.65264433]
[1727288870409,6.6598,150.16,150.11,13.65264433]
[1727288870583,6.6601,150.15,150.09,13.65264433]
[1727288871604,6.6597,150.16,150.09,13.65264433]
[1727288871906,6.6597,150.16,150.11,13.65264433]
[1727288872705,6.6591,150.17,150.11,13.65264433]
[1727288873016,20.2454495,150.19,150.13,13.65264433]
[1727288873213,26.9037495,150.19,150.13,13.65264433]
[1727288873694,20.2454495,150.19,150.15,13.65264433]
[1727288874386,26.9039495,150.19,150.15,13.65264433]
[1727288875401,20.2454495,150.19,150.15,13.65264433]
[1727288875717,6.6587,150.18,150.15,13.65264433]
[1727288875914,20.2454495,150.19,150.13,16.3257]
[1727288875915,40.2954495,150.19,150.13,16.3257]
[1727288876143,6.6596,150.16,150.13,16.3257]
[1727288876891,6.6591,150.17,150.13,16.3257]
[1727288877087,6.6591,150.17,150.13,29.97834433]
[1727288877705,6.6588,150.18,150.13,29.97834433]
[1727288878827,26.9039495,150.19,150.15,13.65264433]
[1727288879000,20.2454495,150.19,150.15,13.65264433]
[1727288879435,26.9037495,150.19,150.15,13.65264433]
[1727288880116,6.6587,150.18,150.15,13.65264433]
[1727288881603,6.6587,150.18,150.13,29.97834433]
[1727288883418,20.2454495,150.19,150.13,29.97834433]
[1727288883603,26.9038495,150.19,150.13,29.97834433]
[1727288884331,20.2454495,150.19,150.15,13.65264433]
[1727288884625,20.2454495,150.19,150.14,1.33205916]
[1727288884626,20.2454495,150.19,150.17,13.65264433]
[1727288885744,20.2454495,150.19,150.15,13.65264433]
[1727288887712,0.2454495,150.19,150.17,13.65264433]
[1727288902358,0.2454495,150.19,150.13,16.3257]
[1727288902538,6.659,150.18,150.13,29.97834433]
[1727288905059,6.659,150.18,150.15,13.65264433]
[1727288907072,0.2454495,150.19,150.17,13.65264433]
[1727288908253,6.6588,150.18,150.13,16.3257]
[1727288908449,0.2454495,150.19,150.14,13.65264433]
[1727288908450,6.9040495,150.19,150.14,13.65264433]
[1727288911062,6.9040495,150.19,150.15,13.65264433]
[1727288911371,6.6588,150.18,150.13,16.3257]
[1727288911571,24.0223335,150.19,150.12,13.65264433]
[1727288911745,6.9037495,150.19,150.15,13.65264433]
[1727288912552,6.6587,150.18,150.15,13.65264433]
[1727288912755,6.6587,150.18,150.13,13.65264433]
[1727288915077,6.6591,150.17,150.12,13.65264433]
[1727288915532,0.2454495,150.19,150.12,13.65264433]
[1727288915664,6.6586,150.18,150.14,13.65264433]
[1727288918191,0.2454495,150.19,150.14,13.65264433]
[1727288918358,6.9036495,150.19,150.14,13.65264433]
[1727288920950,0.2454495,150.19,150.11,6.3343]
[1727288921159,0.2454495,150.19,150.16,13.65264433]
[1727288928683,0.2454495,150.19,150.18,13.65264433]
[1727288931576,0.2454495,150.19,150.13,16.4977]
[1727288931788,6.6587,150.18,150.13,16.4977]
[1727288931968,6.9037495,150.19,150.14,13.65264433]
[1727288934976,6.9037495,150.19,150.15,13.65264433]
[1727288936790,0.2454495,150.19,150.15,13.65264433]
[1727288941113,0.2454495,150.19,150.1,20.0]
[1727288941312,6.6591,150.17,150.12,13.65264433]
[1727288941610,6.6595,150.16,150.11,13.65264433]
[1727288941789,6.1107,150.18,150.12,13.65264433]
[1727288942000,6.1107,150.18,150.09,15.2039]
[1727288942001,6.1107,150.18,150.13,13.65264433]
[1727288942195,12.7695,150.18,150.13,13.65264433]
[1727288942697,6.1107,150.18,150.14,13.65264433]
[1727288944526,0.2454495,150.19,150.16,13.65264433]
[1727288945722,6.9036495,150.19,150.16,13.65264433]
[1727288946119,6.9036495,150.19,150.14,13.65264433]
[1727288947306,0.2454495,150.19,150.1,20.0]
[1727288947496,20.2754495,150.19,150.11,13.65264433]
[1727288948416,6.6596,150.16,150.11,13.65264433]
[1727288948926,6.3882,150.16,150.09,28.85654433]
[1727288949105,6.6602,150.15,150.09,13.65264433]
[1727288950310,6.3882,150.16,150.04,15.1729]
[1727288950311,13.0478,150.16,150.11,13.65264433]
[1727288950512,6.3882,150.16,150.05,1.33228199]
[1727288950715,6.6594,150.17,150.13,13.65264433]
[1727288950920,0.2454495,150.19,150.13,13.65264433]
[1727288950921,20.2454495,150.19,150.13,13.65264433]
[1727288951209,6.6588,150.18,150.13,13.65264433]
[1727288951711,26.9039495,150.19,150.15,13.65264433]
[1727288951896,6.6588,150.18,150.15,13.65264433]
[1727288952110,26.9037495,150.19,150.15,13.65264433]
[1727288952738,6.9037495,150.19,150.15,13.65264433]
[1727288952920,0.2454495,150.19,150.15,13.65264433]
[1727288956526,6.9036495,150.19,150.15,13.65264433]
[1727288957335,0.2454495,150.19,150.15,13.65264433]
[1727288957831,6.9036495,150.19,150.15,13.65264433]
[1727288962680,0.2454495,150.19,150.15,13.65264433]
[1727288964339,6.9036495,150.19,150.15,13.65264433]
[1727288969843,0.2454495,150.19,150.15,13.65264433]
[1727288970133,0.2454495,150.19,150.17,13.65264433]
[1727288973738,0.2454495,150.19,150.11,23.776884]
[1727288973951,0.2454495,150.19,150.16,13.65264433]
[1727288974652,0.2454495,150.19,150.12,1.3318213]
[1727288975048,0.2454495,150.19,150.15,13.65264433]
[1727288976519,0.2454495,150.19,150.12,1.33182415]
[1727288976728,6.9036495,150.19,150.15,13.65264433]
[1727288979540,6.6588,150.18,150.1,20.0]
[1727288979736,6.6588,150.18,150.14,13.65264433]
[1727288980256,6.9039495,150.19,150.14,13.65264433]
[1727288984741,0.2454495,150.19,150.14,13.65264433]
[1727288985048,0.2454495,150.19,150.16,13.65264433]
[1727288988558,0.2454495,150.19,150.18,13.65264433]
[1727289002853,0.2454495,150.19,150.17,13.65264433]
[1727289003368,0.2454495,150.19,150.18,13.65264433]
[1727289008999,0.1772957,150.21,150.18,13.65264433]
[1727289009291,0.2454495,150.23,150.2,13.65264433]
[1727289009584,0.2454495,150.23,150.22,13.65264433]
[1727289012381,0.2454495,150.28,150.22,13.65264433]
[1727289012598,0.2454495,150.28,150.27,13.65264433]
[1727289014909,0.2454495,150.28,150.22,15.2135]
[1727289015407,0.2454495,150.28,150.27,13.65264433]
[1727289023191,0.2454495,150.28,150.25,13.65264433]
[1727289024804,0.2454495,150.28,150.27,13.65264433]
[1727289030220,0.1772957,150.3,150.27,13.65264433]
[1727289030410,0.1772957,150.3,150.29,13.65264433]
[1727289030905,0.2454495,150.32,150.29,13.65264433]
[1727289031117,0.2454495,150.32,150.31,13.65264433]
[1727289034419,15.7979495,150.37,150.31,13.65264433]
[1727289034420,0.2454495,150.37,150.31,13.65264433]
[1727289034620,0.2454495,150.37,150.36,13.65264433]
[1727289035268,0.2454495,150.37,150.34,13.65264433]
[1727289042140,0.2454495,150.37,150.35,13.65264433]
[1727289042351,0.2454495,150.37,150.36,13.65264433]
[1727289050645,0.2454495,150.37,150.28,43.776884]
[1727289050950,0.2454495,150.37,150.36,13.65264433]
[1727289051821,0.2454495,150.37,150.35,13.65264433]
[1727289054834,6.8959495,150.37,150.28,20.0]
[1727289055132,6.8959495,150.37,150.31,13.65264433]
[1727289055326,0.2454495,150.37,150.33,13.65264433]
[1727289058844,0.2454495,150.37,150.35,13.65264433]
[1727289060140,0.2454495,150.37,150.36,1.32993251]
[1727289063737,0.1772957,150.39,150.36,1.32993251]
[1727289063948,0.1772957,150.39,150.38,13.65264433]
[1727289064251,0.2585601,150.42,150.38,14.98221593]
[1727289064457,0.2585601,150.42,150.41,13.65264433]
[1727289064644,0.2585601,150.42,150.41,14.98199683]
[1727289065027,0.2585601,150.42,150.41,13.65264433]
[1727289068429,0.2585601,150.42,150.4,20.0]
[1727289068636,0.2585601,150.42,150.41,13.65264433]
[1727289069554,0.2585601,150.42,150.36,22.1066]
[1727289069812,0.2585601,150.42,150.39,13.65264433]
[1727289069953,0.2585601,150.42,150.32,22.6878]
[1727289070275,0.2585601,150.42,150.36,13.65264433]
[1727289070835,0.2585601,150.42,150.38,13.65264433]
[1727289071062,0.2585601,150.42,150.39,1.32978593]
[1727289071355,0.2585601,150.42,150.4,13.65264433]
[1727289071859,0.2585601,150.42,150.38,13.65264433]
[1727289074554,0.2585601,150.42,150.37,13.65264433]
[1727289074745,6.6485,150.41,150.35,13.65264433]
[1727289075148,6.9066601,150.42,150.35,13.65264433]
[1727289075347,6.6485,150.41,150.35,13.65264433]
[1727289076364,6.6493,150.39,150.34,13.65264433]
[1727289076587,0.2585601,150.42,150.35,1.33006822]
[1727289076873,0.2585601,150.42,150.36,13.65264433]
[1727289077240,6.9069601,150.42,150.36,13.65264433]
[1727289077573,24.0354441,150.42,150.34,13.65264433]
[1727289077753,44.0654441,150.42,150.34,13.65264433]
[1727289078066,6.649,150.4,150.34,13.65264433]
[1727289078252,6.6495,150.39,150.34,13.65264433]
[1727289078566,6.649,150.4,150.34,13.65264433]
[1727289078950,6.6503,150.37,150.32,13.65264433]
[1727289079848,20.03,150.4,150.32,13.65264433]
[1727289080076,6.6507,150.36,150.3,13.65264433]
[1727289080246,43.806884,150.39,150.28,17.56056215]
[1727289080247,43.806884,150.39,150.29,13.65264433]
[1727289080443,6.6512,150.35,150.29,13.65264433]
[1727289080966,6.6508,150.36,150.3,1.33052377]
[1727289081168,6.6502,150.37,150.31,13.65264433]
[1727289081347,6.6498,150.38,150.32,14.98304451]
[1727289081551,6.6495,150.39,150.34,13.65264433]
[1727289081752,21.6763,150.41,150.34,13.65264433]
[1727289081753,6.649,150.4,150.34,13.65264433]
[1727289082681,6.6507,150.36,150.28,1.15786215]
[1727289082871,6.6507,150.36,150.29,13.65264433]
[1727289083050,39.903784,150.39,150.3,1.33060865]
[1727289083254,6.6503,150.37,150.31,13.65264433]
[1727289083775,39.903784,150.39,150.31,13.65264433]
[1727289083950,6.6499,150.38,150.31,13.65264433]
[1727289086253,6.6499,150.38,150.26,0.2424265]
[1727289086254,6.6513,150.35,150.26,0.2424265]
[1727289086461,6.6513,150.35,150.28,13.65264433]
[1727289087281,6.6507,150.36,150.3,13.65264433]
[1727289088192,26.6498,150.38,150.3,13.65264433]
[1727289088414,22.7763,150.39,150.32,13.65264433]
[1727289088707,6.6498,150.38,150.32,13.65264433]
[1727289090791,16.1269,150.39,150.34,13.65264433]
[1727289091099,16.1269,150.39,150.32,13.65264433]
[1727289091298,6.6499,150.38,150.32,13.65264433]
[1727289092056,6.6499,150.38,150.32,14.98299371]
[1727289092383,6.6499,150.38,150.32,13.65264433]
[1727289093189,6.6499,150.38,150.32,14.98299359]
[1727289095403,6.6499,150.38,150.32,13.65264433]
[1727289097006,6.6499,150.38,150.32,14.98299585]
[1727289097601,6.6499,150.38,150.32,13.65264433]
[1727289098299,6.6499,150.38,150.32,14.98299264]
[1727289098612,6.6499,150.38,150.32,13.65264433]
[1727289099125,6.6499,150.38,150.32,14.98299472]
[1727289099597,6.6499,150.38,150.32,13.65264433]
[1727289100322,26.649,150.4,150.34,13.65264433]
[1727289100510,6.649,150.4,150.34,13.65264433]
[1727289101516,20.03,150.41,150.32,13.65264433]
[1727289102103,6.6494,150.39,150.34,13.65264433]
[1727289103402,24.0354441,150.42,150.34,13.65264433]
[1727289103604,26.6487,150.41,150.34,13.65264433]
[1727289104018,26.6487,150.41,150.32,1.33026539]
[1727289104019,26.6487,150.41,150.36,13.65264433]
[1727289104909,6.6487,150.41,150.36,13.65264433]
[1727289105416,24.0354441,150.42,150.36,13.65264433]
[1727289105622,0.2585601,150.42,150.38,13.65264433]
[1727289105823,0.2585601,150.42,150.4,13.65264433]
[1727289108338,0.2585601,150.42,150.41,1.32959219]
[1727289108685,0.2585601,150.42,150.4,13.65264433]
[1727289112009,0.2585601,150.42,150.37,15.7763]
[1727289112329,0.2585601,150.42,150.38,13.65264433]
[1727289115322,0.2585601,150.42,150.37,29.42894433]
[1727289116212,6.9065601,150.42,150.37,29.42894433]
[1727289116411,0.2585601,150.42,150.37,29.42894433]
[1727289116832,6.9065601,150.42,150.37,13.65264433]
[1727289117736,6.9065601,150.42,150.33,15.7645]
[1727289117737,6.6485,150.41,150.35,13.65264433]
[1727289118212,6.9066601,150.42,150.35,13.65264433]
[1727289118316,6.9066601,150.42,150.36,13.65264433]
[1727289119637,6.9066601,150.42,150.37,13.65264433]
[1727289119828,0.2585601,150.42,150.37,13.65264433]
[1727289120146,0.2585601,150.42,150.38,13.65264433]
[1727289121415,0.2585601,150.42,150.37,13.65264433]
[1727289121617,0.2585601,150.42,150.36,13.65264433]
[1727289122017,6.9066601,150.42,150.36,13.65264433]
[1727289122630,0.2585601,150.42,150.4,13.65264433]
[1727289124252,0.2585601,150.42,150.41,1.32966182]
[1727289125564,0.2585601,150.42,150.4,13.65264433]
[1727289126077,0.2585601,150.42,150.41,1.3295134]
[1727289126367,0.2782971,150.42,150.41,14.98215773]
[1727289127559,0.2782971,150.42,150.41,13.65264433]
[1727289130337,0.2782971,150.42,150.39,16.4696]
[1727289130549,0.2782971,150.42,150.35,15.0178]
[1727289130743,6.6485,150.41,150.35,28.67044433]
[1727289131162,0.2782971,150.42,150.35,28.67044433]
[1727289131368,6.9263971,150.42,150.35,28.67044433]
[1727289133054,20.3082971,150.42,150.31,16.4358]
[1727289133368,43.806884,150.41,150.32,33.65264433]
[1727289133766,43.806884,150.41,150.32,13.65264433]
[1727289134270,6.6502,150.37,150.31,16.4358]
[1727289134440,6.6498,150.38,150.31,13.65264433]
[1727289134646,6.6494,150.39,150.33,13.65264433]
[1727289134966,6.649,150.4,150.33,13.65264433]
[1727289135169,6.649,150.4,150.34,13.65264433]
[1727289135941,6.6485,150.41,150.34,13.65264433]
[1727289136568,24.0551811,150.42,150.34,13.65264433]
[1727289136753,24.0551811,150.42,150.28,8.16034623]
[1727289136754,30.7031811,150.42,150.35,13.65264433]
[1727289137145,6.6485,150.41,150.35,13.65264433]
[1727289138855,6.6489,150.4,150.34,13.65264433]
[1727289139093,6.6494,150.39,150.33,13.65264433]
[1727289140142,6.649,150.4,150.33,13.65264433]
[1727289140858,6.649,150.4,150.34,13.65264433]
[1727289141270,6.649,150.4,150.33,13.65264433]
[1727289143186,44.0851811,150.42,150.33,13.65264433]
[1727289143489,6.6493,150.39,150.33,13.65264433]
[1727289144073,24.0551811,150.42,150.34,14.98285]
[1727289144370,24.0551811,150.42,150.35,13.65264433]
[1727289144371,6.6485,150.41,150.35,13.65264433]
[1727289144549,6.6485,150.41,150.34,13.65264433]
[1727289144745,6.649,150.4,150.34,13.65264433]
[1727289144944,6.649,150.4,150.33,13.65264433]
[1727289145253,6.6493,150.39,150.32,13.65264433]
[1727289146010,6.1817,150.38,150.29,20.0]
[1727289146149,6.6503,150.37,150.3,13.65264433]
[1727289147279,6.6503,150.37,150.31,13.65264433]
[1727289149669,28.9708,150.38,150.31,13.65264433]
[1727289151367,28.9708,150.38,150.32,14.98301874]
[1727289151687,28.9708,150.38,150.32,13.65264433]
[1727289156082,28.9708,150.38,150.28,20.0]
[1727289156083,28.9708,150.38,150.31,13.65264433]
[1727289156894,6.6506,150.37,150.31,13.65264433]
[1727289158287,28.971,150.38,150.32,13.65264433]
[1727289158796,28.971,150.38,150.28,20.0]
[1727289158797,22.3209,150.38,150.34,13.65264433]
[1727289159290,22.3209,150.38,150.35,13.65264433]
[1727289159494,13.61094037,150.4,150.37,13.65264433]
[1727289159495,6.96194037,150.4,150.37,13.65264433]
[1727289159684,29.5145971,150.42,150.37,13.65264433]
[1727289159685,22.8662971,150.42,150.37,13.65264433]
[1727289160070,6.6485,150.41,150.37,13.65264433]
[1727289160802,6.6485,150.41,150.35,13.65264433]
[1727289161094,22.8662971,150.42,150.35,13.65264433]
[1727289161095,6.6489,150.4,150.35,13.65264433]
[1727289162194,22.8662971,150.42,150.35,13.65264433]
[1727289162420,6.6486,150.41,150.35,13.65264433]
[1727289166085,29.5146971,150.42,150.36,1.33003437]
[1727289166291,29.5146971,150.42,150.37,13.65264433]
[1727289166512,0.2782971,150.42,150.38,1.3299457]
[1727289166717,0.2782971,150.42,150.39,13.65264433]
[1727289167923,0.2782971,150.42,150.34,21.32976675]
[1727289168236,6.6504,150.37,150.28,15.6936]
[1727289168523,6.6498,150.38,150.3,13.65264433]
[1727289168933,16.0214,150.4,150.34,13.65264433]
[1727289169100,6.4163,150.41,150.34,13.65264433]
[1727289170206,6.4163,150.41,150.35,1.33007102]
[1727289171818,6.4163,150.41,150.34,13.65264433]
[1727289172297,6.4163,150.41,150.33,13.65264433]
[1727289172697,6.6489,150.4,150.33,13.65264433]
[1727289174261,13.0649,150.41,150.33,13.65264433]
[1727289174417,13.0649,150.41,150.35,13.65264433]
[1727289175803,23.776884,150.4,150.33,13.65264433]
[1727289176001,6.6499,150.38,150.31,13.65264433]
[1727289178504,15.7116,150.39,150.28,15.6936]
[1727289178713,6.6503,150.37,150.29,13.65264433]
[1727289179415,22.3614,150.39,150.31,13.65264433]
[1727289180207,22.3614,150.39,150.33,13.65264433]
[1727289180917,15.7116,150.39,150.31,13.65264433]
[1727289181111,6.6503,150.37,150.31,13.65264433]
[1727289181634,6.651,150.36,150.29,13.65264433]
[1727289181936,6.6512,150.35,150.29,13.65264433]
[1727289182133,12.8568,150.35,150.29,13.65264433]
[1727289182631,15.7116,150.33,150.27,13.65264433]
[1727289183036,15.7116,150.33,150.3,13.65264433]
[1727289183607,22.3639,150.33,150.26,13.86028203]
[1727289183803,15.7116,150.33,150.26,13.86028203]
[1727289184121,22.3637,150.33,150.26,13.86028203]
[1727289184529,15.7116,150.33,150.26,0.2076377]
[1727289184852,6.6524,150.32,150.26,0.2076377]
[1727289185011,6.6532,150.31,150.26,0.2076377]
[1727289185342,6.6534,150.3,150.26,0.2076377]
[1727289186055,23.776884,150.32,150.26,0.2076377]
[1727289186056,6.653,150.31,150.26,0.2076377]
[1727289189523,6.653,150.31,150.26,13.86028203]
[1727289190649,22.3638,150.33,150.27,13.65264433]
[1727289190817,15.7116,150.33,150.28,13.65264433]
[1727289191147,15.7116,150.33,150.29,13.65264433]
[1727289191348,15.7116,150.33,150.28,13.65264433]
[1727289191645,15.7116,150.33,150.29,13.65264433]
[1727289191848,15.7116,150.33,150.28,13.65264433]
[1727289192763,6.6526,150.32,150.27,13.65264433]
[1727289193147,6.6526,150.32,150.26,13.86028203]
[1727289193859,6.6526,150.32,150.26,0.2076377]
[1727289194363,6.6526,150.32,150.26,13.86028203]
[1727289195163,22.3638,150.33,150.26,13.86028203]
[1727289196090,6.6524,150.32,150.26,13.86028203]
[1727289196466,22.3638,150.33,150.26,13.86028203]
[1727289196758,22.3638,150.33,150.27,13.65264433]
[1727289196959,22.3638,150.33,150.29,13.65264433]
[1727289197760,15.7116,150.33,150.3,13.65264433]
[1727289198761,15.7116,150.33,150.28,13.65264433]
[1727289199557,22.3637,150.33,150.28,13.65264433]
[1727289200148,6.6536,150.3,150.26,13.86028203]
[1727289200452,6.653,150.31,150.26,13.86028203]
[1727289201349,43.796884,150.32,150.26,13.86028203]
[1727289201553,6.6538,150.29,150.26,0.2076377]
[1727289201758,6.6534,150.3,150.26,0.2076377]
[1727289201950,6.6543,150.28,150.26,0.2076377]
[1727289202582,38.829384,150.27,150.26,0.2076377]
[1727289202765,51.870184,150.27,150.26,0.2076377]
[1727289204551,71.890184,150.27,150.26,0.2076377]
[1727289207373,91.890184,150.27,150.26,0.2076377]
[1727289208799,45.215584,150.27,150.26,0.2076377]
[1727289209057,23.776884,150.27,150.26,0.2076377]
[1727289209167,6.6543,150.28,150.26,0.2076377]
[1727289209887,26.6743,150.28,150.26,0.2076377]
[1727289210386,6.6546,150.27,150.26,0.2076377]
[1727289210557,20.0,150.29,150.26,0.2076377]
[1727289210759,30.430284,150.3,150.26,13.86028203]
[1727289210998,23.776884,150.3,150.26,13.86028203]
[1727289211485,30.430184,150.3,150.26,13.86028203]
[1727289212258,30.430184,150.3,150.26,0.2076377]
[1727289213192,41.6892,150.31,150.26,0.2076377]
[1727289213393,48.3423,150.31,150.26,0.2076377]
[1727289214397,21.6692,150.31,150.26,0.2076377]
[1727289214581,6.6526,150.32,150.26,21.50724003]
[1727289214772,6.6521,150.33,150.26,21.50724003]
[1727289215179,6.6524,150.32,150.26,21.50724003]
[1727289215373,6.6533,150.3,150.26,0.2076377]
[1727289216697,23.776884,150.32,150.26,0.2076377]
[1727289216870,6.6529,150.31,150.26,0.2076377]
[1727289217074,6.6524,150.32,150.26,21.50724003]
[1727289218401,6.6529,150.31,150.26,0.2076377]
[1727289219414,20.02,150.31,150.26,0.2076377]
[1727289219616,6.6546,150.27,150.26,0.2076377]
[1727289223194,23.776884,150.28,150.26,0.2076377]
[1727289223918,30.431184,150.28,150.26,0.2076377]
[1727289225105,6.6538,150.29,150.26,0.2076377]
[1727289225317,6.6535,150.3,150.26,0.2076377]
[1727289227319,6.653,150.31,150.26,0.2076377]
[1727289227497,43.776884,150.32,150.26,21.50724003]
[1727289227706,23.776884,150.32,150.26,21.50724003]
[1727289228209,6.6525,150.32,150.26,21.50724003]
[1727289231487,6.6529,150.31,150.26,0.2076377]
[1727289238336,6.6529,150.31,150.26,13.83838147]
[1727289238728,50.76179426,150.33,150.26,13.83838147]
[1727289239219,6.6529,150.31,150.26,13.83838147]
[1727289239846,50.76179426,150.33,150.28,13.63074377]
[1727289240035,57.41389426,150.33,150.28,13.63074377]
[1727289240531,6.6525,150.32,150.28,13.63074377]
[1727289241149,20.02,150.32,150.26,0.2076377]
[1727289241242,6.6546,150.27,150.26,0.2076377]
[1727289241546,30.431484,150.27,150.26,0.2076377]
[1727289242238,50.451484,150.27,150.26,0.2076377]
[1727289242438,70.451484,150.27,150.26,0.2076377]
[1727289243320,30.431484,150.27,150.26,0.2076377]
[1727289244242,16.6326,150.31,150.26,0.2076377]
[1727289244443,6.6542,150.28,150.26,0.2076377]
[1727289244850,40.02,150.3,150.26,0.2076377]
[1727289244851,6.6546,150.27,150.26,0.2076377]
[1727289245946,30.431084,150.29,150.26,0.2076377]
[1727289246648,26.6534,150.3,150.26,0.2076377]
[1727289246832,20.0,150.3,150.26,0.2076377]
[1727289247227,26.6536,150.3,150.26,0.2076377]
[1727289247544,6.6539,150.29,150.26,0.2076377]
[1727289248839,20.0,150.3,150.26,0.2076377]
[1727289249038,6.6535,150.3,150.26,0.2076377]
[1727289250576,30.430984,150.29,150.26,0.2076377]
[1727289250940,6.6541,150.29,150.26,0.2076377]
[1727289253436,6.6544,150.28,150.26,0.2076377]
[1727289253777,6.6546,150.27,150.26,0.2076377]
[1727289254623,63.796884,150.3,150.26,0.2076377]
[1727289255153,20.0,150.3,150.26,0.2076377]
[1727289255352,26.6531,150.31,150.26,0.2076377]
[1727289255530,28.54854433,150.34,150.26,0.2076377]
[1727289255732,6.6521,150.33,150.27,21.32108242]
[1727289256257,6.6525,150.32,150.27,21.32108242]
[1727289256467,6.6521,150.33,150.27,21.32108242]
[1727289256641,6.96074433,150.34,150.27,21.32108242]
[1727289256642,6.6525,150.32,150.27,21.32108242]
[1727289257069,6.6534,150.3,150.26,0.2076377]
[1727289259149,23.776884,150.31,150.26,0.2076377]
[1727289259355,6.6526,150.32,150.26,0.2076377]